bitfinex/quotes_SOLUSD_20241105
["timestamp","ask_amount","ask_price","bid_price","bid_amount"]
[1730831192709,6.0052,166.53,166.48,32.11829541]
[1730831193092,17.09919541,166.55,166.49,11.09479541]
[1730831193287,17.09919541,166.55,166.48,21.0235]
[1730831193288,6.0044,166.55,166.5,11.09479541]
[1730831193485,17.09879541,166.56,166.51,11.09479541]
[1730831193804,6.004,166.56,166.51,11.09479541]
[1730831194204,6.0034,166.58,166.53,11.09479541]
[1730831194501,11.09479541,166.6,166.54,33.91249541]
[1730831195411,6.0027,166.59,166.54,40.13976287]
[1730831195793,6.0027,166.59,166.54,46.14426287]
[1730831202911,6.0027,166.59,166.54,40.13976287]
[1730831203111,23.32476287,166.59,166.54,22.8177]
[1730831210721,17.32206287,166.57,166.51,38.34146287]
[1730831211903,17.32206287,166.55,166.5,15.8591]
[1730831212313,17.32206287,166.55,166.5,33.18116287]
[1730831212521,17.32206287,166.55,166.5,15.8591]
[1730831212813,17.32206287,166.55,166.5,33.18116287]
[1730831214123,23.32636287,166.55,166.5,39.18706287]
[1730831214422,17.32206287,166.54,166.5,15.8591]
[1730831214809,6.0043,166.55,166.5,15.8591]
[1730831214810,23.32636287,166.55,166.5,15.8591]
[1730831215316,17.09744322,166.55,166.5,15.8591]
[1730831218034,11.09314322,166.54,166.48,26.10974322]
[1730831218325,11.09314322,166.54,166.49,11.09314322]
[1730831220237,11.09314322,166.55,166.49,11.09314322]
[1730831220528,6.0031,166.58,166.53,11.09314322]
[1730831221332,17.09624322,166.58,166.53,11.09314322]
[1730831222927,17.09584322,166.59,166.53,33.29234322]
[1730831223127,17.09584322,166.59,166.54,11.09314322]
[1730831223445,17.09584322,166.59,166.55,11.09314322]
[1730831223446,6.0027,166.59,166.55,11.09314322]
[1730831223733,6.002,166.61,166.57,11.09314322]
[1730831223942,11.09314322,166.63,166.58,11.09314322]
[1730831224247,18.10290315,166.65,166.59,11.09314322]
[1730831224535,11.09314322,166.63,166.58,11.09314322]
[1730831224722,11.09314322,166.63,166.57,11.09314322]
[1730831225029,7.00975993,166.65,166.59,11.09314322]
[1730831225236,11.09314322,166.65,166.59,11.09314322]
[1730831225425,11.09314322,166.65,166.6,11.09314322]
[1730831226328,17.09384322,166.65,166.6,11.09314322]
[1730831226739,6.0007,166.65,166.6,11.09314322]
[1730831227157,14.13901968,166.7,166.62,11.09314322]
[1730831227458,14.13901968,166.7,166.63,11.09314322]
[1730831227459,17.09224322,166.69,166.63,11.09314322]
[1730831228440,11.09314322,166.67,166.62,11.09314322]
[1730831228648,11.09314322,166.66,166.6,53.55694322]
[1730831228960,20.997,166.69,166.6,36.4618]
[1730831229135,11.09314322,166.65,166.6,53.55734322]
[1730831230451,17.09374322,166.65,166.6,53.55734322]
[1730831231150,6.0006,166.65,166.6,53.55734322]
[1730831231662,6.0006,166.65,166.6,47.55494322]
[1730831233939,6.0006,166.65,166.6,53.55734322]
[1730831234858,11.09314322,166.64,166.6,21.4558]
[1730831235056,64.39389437,166.69,166.57,15.0085]
[1730831235057,11.09314322,166.62,166.57,15.0085]
[1730831235531,11.09314322,166.65,166.59,11.09314322]
[1730831236553,6.0009,166.64,166.59,11.09314322]
[1730831237255,17.09404322,166.64,166.58,17.09594322]
[1730831240245,17.09404322,166.64,166.57,15.0085]
[1730831240246,11.09314322,166.63,166.57,21.0119]
[1730831240749,11.09314322,166.63,166.57,32.10504322]
[1730831240947,17.09404322,166.64,166.58,11.09314322]
[1730831241257,6.0009,166.64,166.59,11.09314322]
[1730831241455,17.09354322,166.66,166.6,11.09314322]
[1730831242158,11.09314322,166.65,166.59,11.09314322]
[1730831242549,6.0009,166.64,166.59,11.09314322]
[1730831243245,6.0009,166.64,166.59,17.09584322]
[1730831244654,11.09314322,166.63,166.58,15.0078]
[1730831244861,17.09404322,166.64,166.58,26.10094322]
[1730831245663,17.09404322,166.64,166.58,32.10404322]
[1730831248370,17.09404322,166.64,166.59,11.09314322]
[1730831248739,6.0009,166.64,166.59,11.09314322]
[1730831249968,17.09404322,166.64,166.58,32.10394322]
[1730831250262,17.09404322,166.64,166.59,11.09314322]
[1730831251851,17.09404322,166.64,166.56,22.15]
[1730831252160,11.09314322,166.61,166.56,22.15]
[1730831252365,11.09314322,166.6,166.56,22.15]
[1730831252561,11.09314322,166.6,166.54,6.0045]
[1730831252866,11.09314322,166.6,166.54,17.09764322]
[1730831253052,11.09314322,166.6,166.54,11.09314322]
[1730831253649,11.09314322,166.59,166.54,11.09314322]
[1730831254469,6.0031,166.58,166.53,11.09314322]
[1730831255869,6.0031,166.58,166.54,11.09314322]
[1730831260547,11.09314322,166.6,166.54,11.09314322]
[1730831260844,6.0027,166.59,166.54,11.09314322]
[1730831263780,11.09314322,166.59,166.54,11.09314322]
[1730831265186,6.0031,166.58,166.54,11.09314322]
[1730831265686,6.0031,166.58,166.54,17.09764322]
[1730831266473,6.0031,166.58,166.54,11.09314322]
[1730831266674,6.0031,166.58,166.53,11.09314322]
[1730831266869,11.09314322,166.54,166.48,22.3677]
[1730831267065,11.09314322,166.55,166.49,11.09314322]
[1730831267392,6.0046,166.54,166.49,11.09314322]
[1730831267567,11.09314322,166.56,166.5,11.09314322]
[1730831267768,6.0042,166.55,166.51,11.09314322]
[1730831268283,6.0039,166.56,166.52,11.09314322]
[1730831268490,6.0034,166.58,166.54,11.09314322]
[1730831269187,17.09584322,166.59,166.53,11.09314322]
[1730831270368,17.09584322,166.59,166.53,17.09804322]
[1730831270988,11.09314322,166.57,166.52,11.09314322]
[1730831271288,11.09314322,166.56,166.51,26.10634322]
[1730831271471,11.09314322,166.56,166.51,32.11194322]
[1730831272191,11.09314322,166.57,166.51,32.11194322]
[1730831272397,6.0038,166.56,166.51,32.11194322]
[1730831275087,17.09694322,166.56,166.5,11.09314322]
[1730831275275,11.09314322,166.55,166.49,17.09934322]
[1730831276766,6.0045,166.54,166.49,17.09934322]
[1730831277077,6.0045,166.54,166.5,11.09314322]
[1730831277272,6.0045,166.54,166.49,32.11524322]
[1730831277779,6.0045,166.54,166.5,11.09314322]
[1730831278379,6.0042,166.55,166.5,11.09314322]
[1730831278783,6.0042,166.55,166.5,17.09904322]
[1730831279776,6.0027,166.59,166.51,11.09314322]
[1730831280092,11.09314322,166.57,166.51,11.09314322]
[1730831280693,6.0038,166.56,166.51,11.09314322]
[1730831281885,17.09694322,166.56,166.5,21.0209]
[1730831282086,17.09694322,166.56,166.5,32.11404322]
[1730831282521,17.09694322,166.56,166.5,26.10814322]
[1730831282996,11.09314322,166.55,166.5,26.10814322]
[1730831283186,11.09314322,166.55,166.5,15.015]
[1730831283490,17.09694322,166.56,166.5,32.11414322]
[1730831283996,21.26534587,166.6,166.51,11.09314322]
[1730831284194,11.09314322,166.58,166.51,11.09314322]
[1730831284581,6.0034,166.57,166.52,6.0052]
[1730831285701,6.0034,166.57,166.52,11.09314322]
[1730831286174,6.0034,166.57,166.51,11.09314322]
[1730831286589,11.09314322,166.55,166.48,22.3677]
[1730831286795,11.09314322,166.54,166.48,39.46754322]
[1730831287724,6.26357766,166.59,166.55,6.1837]
[1730831287997,10.55331576,166.63,166.58,11.09314322]
[1730831288207,6.001,166.64,166.59,11.09314322]
[1730831288575,13.3179,166.67,166.59,11.09314322]
[1730831288874,11.09314322,166.67,166.61,11.09314322]
[1730831289296,6.2587257,166.69,166.6,11.09314322]
[1730831289593,11.09314322,166.66,166.6,11.09314322]
[1730831289800,6.2587257,166.69,166.6,11.09314322]
[1730831289801,17.09314322,166.67,166.6,11.09314322]
[1730831290098,6.0,166.67,166.61,11.09314322]
[1730831290394,6.2587257,166.69,166.64,11.09314322]
[1730831290597,11.09314322,166.69,166.63,11.09314322]
[1730831291175,11.09314322,166.68,166.62,17.35574322]
[1730831292098,11.09314322,166.7,166.64,11.09314322]
[1730831292274,27.65066031,166.71,166.65,11.09314322]
[1730831292479,17.09174322,166.71,166.66,11.09314322]
[1730831292706,5.998,166.73,166.67,11.09314322]
[1730831292882,5.998,166.73,166.62,27.2681]
[1730831292883,11.09314322,166.7,166.64,31.09314322]
[1730831293701,11.09314322,166.71,166.65,11.09314322]
[1730831294109,11.09314322,166.71,166.65,32.09514322]
[1730831294283,11.09314322,166.72,166.66,11.09314322]
[1730831294979,11.09314322,166.72,166.66,17.09324322]
[1730831295179,17.65764995,166.74,166.68,27.48574322]
[1730831295405,0.308516,166.74,166.69,17.26524322]
[1730831295579,17.39915922,166.74,166.69,6.1721]
[1730831295908,11.09314322,166.73,166.69,6.1721]
[1730831296288,11.40165922,166.74,166.69,6.1721]
[1730831296811,11.09314322,166.71,166.69,6.1721]
[1730831297012,11.09314322,166.72,166.69,6.1721]
[1730831298212,11.09314322,166.7,166.69,6.1721]
[1730831298904,11.09314322,166.7,166.68,16.3926]
[1730831299079,11.09314322,166.69,166.68,16.3926]
[1730831299282,17.09194322,166.7,166.68,16.3926]
[1730831299515,11.09314322,166.7,166.68,16.3926]
[1730831299805,5.9979,166.73,166.66,40.87022722]
[1730831300020,11.09314322,166.71,166.66,40.87022722]
[1730831300713,11.09314322,166.7,166.65,27.1448]
[1730831301110,11.09314322,166.7,166.65,21.1442]
[1730831301304,11.09314322,166.67,166.65,6.143]
[1730831301809,11.09314322,166.68,166.65,6.143]
[1730831301994,11.09314322,166.69,166.65,6.143]
[1730831302192,11.09314322,166.67,166.65,6.143]
[1730831302389,11.09314322,166.68,166.65,6.143]
[1730831303391,11.09314322,166.69,166.65,6.143]
[1730831303798,11.09314322,166.68,166.65,6.143]
[1730831304204,11.09314322,166.67,166.64,16.5986]
[1730831305715,11.09314322,166.65,166.61,27.1426]
[1730831305897,11.09314322,166.64,166.61,27.1426]
[1730831306405,11.09314322,166.63,166.61,6.1365]
[1730831306605,11.09314322,166.63,166.6,15.1739]
[1730831306911,11.09314322,166.62,166.6,15.1739]
[1730831308312,11.09314322,166.64,166.6,21.1761]
[1730831312193,11.09314322,166.63,166.6,15.1739]
[1730831313003,11.09314322,166.64,166.6,21.1762]
[1730831314109,5.9996,166.68,166.61,11.09314322]
[1730831314323,11.09314322,166.67,166.61,11.09314322]
[1730831314906,11.09314322,166.67,166.62,6.0016]
[1730831315524,5.9984,166.71,166.63,29.981084]
[1730831315707,11.09314322,166.66,166.63,6.2042]
[1730831316827,11.09314322,166.66,166.63,12.2053]
[1730831317327,11.09314322,166.64,166.6,21.1762]
[1730831317509,11.09314322,166.63,166.6,21.1762]
[1730831317907,11.09314322,166.63,166.6,15.1739]
[1730831318121,11.09314322,166.62,166.59,6.5825]
[1730831318725,11.09314322,166.62,166.59,12.5852]
[1730831318903,11.09314322,166.63,166.59,12.5852]
[1730831320308,11.09314322,166.64,166.59,12.5852]
[1730831321310,20.997,166.69,166.59,12.5852]
[1730831321311,11.09314322,166.63,166.59,12.5852]
[1730831322023,5.9995,166.68,166.59,38.68524322]
[1730831322231,11.09314322,166.65,166.59,38.68524322]
[1730831322428,11.09314322,166.66,166.6,11.09314322]
[1730831322619,5.9995,166.68,166.61,11.09314322]
[1730831322930,5.9995,166.68,166.6,23.776884]
[1730831322931,11.09314322,166.68,166.62,11.09314322]
[1730831323228,11.09314322,166.68,166.63,11.09314322]
[1730831323431,11.09314322,166.68,166.62,11.09314322]
[1730831325212,11.09314322,166.67,166.63,6.0013]
[1730831325722,11.09314322,166.67,166.63,21.0046]
[1730831326118,5.9991,166.69,166.63,47.63594322]
[1730831326119,11.09314322,166.69,166.63,47.63594322]
[1730831326318,11.09314322,166.7,166.64,11.09314322]
[1730831327214,17.09194322,166.7,166.65,6.0006]
[1730831328336,11.09314322,166.69,166.63,26.63134322]
[1730831328511,11.09314322,166.69,166.64,21.0033]
[1730831328706,11.09314322,166.67,166.64,21.0033]
[1730831328904,11.09314322,166.68,166.64,21.0033]
[1730831329320,5.9988,166.7,166.64,21.0033]
[1730831329321,11.09314322,166.69,166.64,21.0033]
[1730831330324,11.09314322,166.69,166.64,32.09644322]
[1730831331721,11.09314322,166.69,166.64,21.0033]
[1730831334318,11.09314322,166.68,166.64,21.0033]
[1730831336837,17.09194322,166.7,166.64,32.09644322]
[1730831337526,11.09314322,166.69,166.64,21.0033]
[1730831337720,5.9977,166.73,166.64,32.09644322]
[1730831337934,11.09314322,166.7,166.64,32.09644322]
[1730831338240,11.09314322,166.69,166.64,21.0033]
[1730831342140,11.09314322,166.68,166.64,21.0033]
[1730831342322,11.09314322,166.67,166.64,21.0033]
[1730831342824,28.620416,166.74,166.64,21.0033]
[1730831342825,11.09314322,166.69,166.64,21.0033]
[1730831343345,11.09314322,166.68,166.64,21.0033]
[1730831343549,11.09314322,166.69,166.64,21.0033]
[1730831343718,5.9977,166.73,166.64,32.09644322]
[1730831343927,11.09314322,166.71,166.65,40.95992722]
[1730831344243,17.09084322,166.73,166.67,26.09284322]
[1730831344420,17.09084322,166.73,166.67,14.9997]
[1730831345022,6.305916,166.74,166.67,26.09284322]
[1730831345228,11.09314322,166.73,166.67,26.09284322]
[1730831345537,11.09314322,166.72,166.67,26.09284322]
[1730831346345,11.09314322,166.72,166.67,32.09264322]
[1730831346847,11.09314322,166.72,166.67,20.9995]
[1730831349541,11.09314322,166.7,166.67,20.9995]
[1730831350544,11.09314322,166.69,166.67,14.9997]
[1730831352534,11.09314322,166.7,166.67,14.9997]
[1730831353537,17.09164322,166.71,166.67,14.9997]
[1730831354252,11.09314322,166.7,166.67,14.9997]
[1730831356931,0.308516,166.74,166.68,20.0]
[1730831357132,11.09314322,166.72,166.68,20.0]
[1730831358041,11.09314322,166.73,166.68,20.0]
[1730831358554,0.308516,166.74,166.69,32.09014322]
[1730831359046,0.308516,166.74,166.71,32.93054322]
[1730831360536,0.308516,166.74,166.72,20.9932]
[1730831363058,0.308516,166.74,166.72,32.08634322]
[1730831363958,0.308516,166.74,166.72,20.9932]
[1730831364342,0.308516,166.74,166.73,54.87002722]
[1730831366032,0.308516,166.74,166.73,60.86772722]
[1730831366428,6.2531648,166.86,166.73,60.86772722]
[1730831366429,6.2531648,166.86,166.76,0.12549]
[1730831366729,11.09314322,166.85,166.75,0.22549]
[1730831366941,11.09314322,166.85,166.74,65.928084]
[1730831366942,17.08724322,166.83,166.74,65.828084]
[1730831367154,11.09314322,166.81,166.74,42.0512]
[1730831367336,11.09314322,166.78,166.74,42.0512]
[1730831367835,11.09314322,166.79,166.74,42.0512]
[1730831368164,6.303216,166.82,166.74,74.13474322]
[1730831368165,5.9948,166.81,166.74,74.13474322]
[1730831368354,11.09314322,166.8,166.74,74.13474322]
[1730831369847,11.09314322,166.81,166.75,11.09314322]
[1730831370233,0.308516,166.82,166.75,11.09314322]
[1730831370446,0.308516,166.82,166.76,34.87002722]
[1730831370652,11.40165922,166.82,166.76,34.87002722]
[1730831371459,11.40165922,166.82,166.77,5.9962]
[1730831371847,11.09314322,166.81,166.77,5.9962]
[1730831372259,0.308516,166.82,166.77,5.9962]
[1730831372260,11.09314322,166.8,166.77,5.9962]
[1730831372856,11.09314322,166.81,166.77,5.9962]
[1730831373557,11.09314322,166.8,166.76,20.9874]
[1730831373865,11.09314322,166.79,166.76,14.9908]
[1730831374241,11.09314322,166.8,166.76,20.9874]
[1730831375365,0.308516,166.82,166.77,11.09314322]
[1730831375660,0.308516,166.82,166.78,70.84832722]
[1730831375847,0.308516,166.82,166.79,11.09314322]
[1730831376556,0.308516,166.82,166.8,11.09314322]
[1730831376867,0.308516,166.82,166.81,11.09314322]
[1730831377235,0.308516,166.82,166.81,5.9948]
[1730831378559,0.308516,166.82,166.8,21.1538]
[1730831378758,0.308516,166.82,166.8,14.9877]
[1730831379265,0.308516,166.82,166.8,20.9829]
[1730831384868,0.308516,166.82,166.81,34.87002722]
[1730831385563,0.308516,166.82,166.81,40.86482722]
[1730831385764,0.308516,166.82,166.81,5.9948]
[1730831385963,0.308516,166.82,166.8,14.9877]
[1730831386178,0.308516,166.82,166.8,32.07604322]
[1730831386966,0.308516,166.82,166.81,11.09314322]
[1730831387471,0.308516,166.82,166.81,60.86482722]
[1730831393168,0.308516,166.82,166.81,25.9948]
[1730831393755,0.308516,166.82,166.81,37.08794322]
[1730831394275,0.308516,166.82,166.81,60.86482722]
[1730831398879,0.308516,166.82,166.81,60.96482722]
[1730831402176,0.308516,166.82,166.81,61.09031722]
[1730831402351,0.308516,166.82,166.81,67.64591722]
[1730831404279,1.6e-05,166.82,166.81,67.99689722]
[1730831405274,1.6e-05,166.82,166.81,56.903754]
[1730831405484,1.6e-05,166.82,166.81,56.327284]
[1730831405771,1.6e-05,166.82,166.81,67.64591722]
[1730831406366,1.6e-05,166.82,166.81,67.54591722]
[1730831406870,1.6e-05,166.82,166.81,67.64591722]
[1730831407073,1.6e-05,166.82,166.81,67.54591722]
[1730831407373,1.6e-05,166.82,166.81,67.64591722]
[1730831408055,1.6e-05,166.82,166.81,36.327284]
[1730831408250,1.6e-05,166.82,166.81,5.9948]
[1730831408674,1.6e-05,166.82,166.81,17.08794322]
[1730831410285,1.6e-05,166.82,166.81,37.08794322]
[1730831413880,1.6e-05,166.82,166.8,14.9877]
[1730831414078,1.6e-05,166.82,166.8,20.9829]
[1730831414688,1.6e-05,166.82,166.8,14.9877]
[1730831415207,1.6e-05,166.82,166.79,20.0]
[1730831416088,1.6e-05,166.82,166.79,25.9954]
[1730831416488,1.6e-05,166.82,166.78,20.9857]
[1730831416699,1.6e-05,166.82,166.79,11.09314322]
[1730831416989,1.6e-05,166.82,166.8,11.09314322]
[1730831417193,1.6e-05,166.82,166.78,20.9857]
[1730831417194,1.6e-05,166.82,166.81,31.09314322]
[1730831417888,1.6e-05,166.82,166.81,37.08794322]
[1730831426097,1.6e-05,166.82,166.81,17.08794322]
[1730831426595,1.6e-05,166.82,166.81,37.08794322]
[1730831427190,1.6e-05,166.82,166.81,60.86482722]
[1730831429898,1.6e-05,166.82,166.81,49.771684]
[1730831430108,1.6e-05,166.82,166.81,37.08794322]
[1730831431383,1.6e-05,166.82,166.81,60.86482722]
[1730831433414,1.6e-05,166.82,166.81,60.99031722]
[1730831433700,1.6e-05,166.82,166.81,76.89109722]
[1730831433899,0.308516,166.91,166.83,0.1]
[1730831434103,0.308516,166.91,166.87,11.09314322]
[1730831435308,0.308516,166.91,166.88,5.9923]
[1730831435695,11.40165922,166.91,166.88,5.9923]
[1730831435900,11.09314322,166.9,166.88,5.9923]
[1730831436296,11.09314322,166.89,166.87,14.9808]
[1730831436499,11.09314322,166.9,166.87,14.9808]
[1730831437907,0.308516,166.91,166.87,14.9808]
[1730831438107,0.308516,166.91,166.87,26.07394322]
[1730831438287,0.308516,166.91,166.88,11.09314322]
[1730831438484,0.308516,166.91,166.87,14.9808]
[1730831438709,11.40165922,166.91,166.87,14.9808]
[1730831439609,0.308516,166.91,166.87,14.9808]
[1730831439793,11.40165922,166.91,166.87,14.9808]
[1730831440312,0.308516,166.91,166.9,54.87002722]
[1730831440611,0.308516,166.91,166.88,31.09314322]
[1730831440785,0.308516,166.91,166.88,20.1]
[1730831441585,0.308516,166.91,166.9,31.09314322]
[1730831441785,0.308516,166.91,166.9,20.0]
[1730831442012,0.308516,166.91,166.89,32.06494322]
[1730831442395,0.308516,166.91,166.89,20.9718]
[1730831442709,0.308516,166.91,166.89,14.9799]
[1730831443302,0.308516,166.91,166.89,20.9718]
[1730831443489,0.308516,166.91,166.89,14.9799]
[1730831445091,11.09314322,166.9,166.86,14.9826]
[1730831445411,0.308516,166.91,166.86,14.9826]
[1730831445412,11.09314322,166.89,166.86,14.9826]
[1730831449619,11.09314322,166.87,166.84,5.9937]
[1730831450623,11.09314322,166.87,166.83,20.0]
[1730831451605,11.09314322,166.86,166.82,20.9798]
[1730831451817,11.09314322,166.85,166.82,20.9798]
[1730831452010,11.09314322,166.84,166.82,20.9798]
[1730831452214,13.6263,166.89,166.82,20.9798]
[1730831452215,11.09314322,166.85,166.82,20.9798]
[1730831452596,13.6263,166.89,166.82,14.9854]
[1730831452597,11.09314322,166.86,166.82,14.9854]
[1730831452802,13.6263,166.89,166.82,26.07854322]
[1730831453022,11.09314322,166.88,166.82,26.07854322]
[1730831453910,11.09314322,166.88,166.83,11.09314322]
[1730831454621,11.09314322,166.88,166.82,26.07854322]
[1730831455018,11.09314322,166.88,166.82,32.07294322]
[1730831455603,11.09314322,166.87,166.82,32.07294322]
[1730831455805,11.09314322,166.86,166.82,20.9798]
[1730831456831,11.09314322,166.85,166.82,20.9798]
[1730831457014,11.09314322,166.86,166.82,20.9798]
[1730831457216,5.9919,166.9,166.82,20.9798]
[1730831457534,11.09314322,166.87,166.82,32.07294322]
[1730831458901,11.09314322,166.87,166.82,20.9798]
[1730831459106,11.09314322,166.83,166.82,14.9854]
[1730831459330,11.09314322,166.83,166.8,20.0]
[1730831459532,11.09314322,166.83,166.8,25.9951]
[1730831459936,11.09314322,166.83,166.79,20.9841]
[1730831460810,11.09314322,166.83,166.79,14.9886]
[1730831461637,11.09314322,166.85,166.79,26.08174322]
[1730831461810,11.09314322,166.85,166.8,20.0]
[1730831462130,11.09314322,166.86,166.8,31.09314322]
[1730831462809,11.09314322,166.86,166.81,11.09314322]
[1730831463009,11.09314322,166.86,166.82,20.9806]
[1730831464134,11.09314322,166.85,166.82,20.9806]
[1730831464833,11.09314322,166.85,166.82,14.9862]
[1730831465329,11.09314322,166.87,166.82,14.9862]
[1730831466227,11.09314322,166.87,166.82,20.9806]
[1730831466435,11.09314322,166.86,166.82,20.9806]
[1730831468332,11.09314322,166.85,166.82,20.9806]
[1730831468535,11.09314322,166.83,166.78,14.9889]
[1730831469328,11.09314322,166.82,166.78,14.9889]
[1730831469531,11.09314322,166.82,166.78,20.9848]
[1730831470933,0.1,166.87,166.78,20.9848]
[1730831470934,11.09314322,166.81,166.78,20.9848]
[1730831472038,11.09314322,166.81,166.78,14.9889]
[1730831472348,11.09314322,166.79,166.78,14.9889]
[1730831473238,5.993,166.86,166.78,14.9889]
[1730831473423,11.09314322,166.82,166.78,14.9889]
[1730831474537,11.09314322,166.81,166.78,14.9889]
[1730831475308,11.09314322,166.82,166.78,14.9889]
[1730831475730,11.09314322,166.81,166.78,14.9889]
[1730831476433,11.09314322,166.8,166.78,14.9889]
[1730831476816,11.09314322,166.81,166.78,14.9889]
[1730831478538,11.09314322,166.79,166.78,14.9889]
[1730831478740,11.09314322,166.79,166.75,14.9924]
[1730831479041,11.09314322,166.78,166.75,14.9924]
[1730831479219,11.09314322,166.79,166.75,14.9924]
[1730831479930,49.49599437,166.84,166.75,20.9894]
[1730831479931,11.09314322,166.8,166.75,20.9894]
[1730831480114,11.09314322,166.81,166.75,32.08254322]
[1730831481436,11.09314322,166.8,166.75,20.9894]
[1730831482838,11.09314322,166.81,166.75,32.08254322]
[1730831483743,11.09314322,166.8,166.75,20.9894]
[1730831484944,11.09314322,166.79,166.75,20.9894]
[1730831486431,11.09314322,166.8,166.75,20.9894]
[1730831487743,11.09314322,166.79,166.75,20.9894]
[1730831488841,11.09314322,166.78,166.75,14.9924]
[1730831492545,11.09314322,166.79,166.75,14.9924]
[1730831493242,5.9937,166.84,166.77,11.09314322]
[1730831493424,5.9935,166.85,166.78,11.09314322]
[1730831493625,11.09314322,166.83,166.77,31.09314322]
[1730831493822,11.09314322,166.85,166.79,31.09314322]
[1730831494129,11.09314322,166.87,166.81,11.09314322]
[1730831494321,0.308516,166.91,166.82,11.09314322]
[1730831494545,11.09314322,166.88,166.83,20.9794]
[1730831495350,11.09314322,166.87,166.83,20.9794]
[1730831496635,11.09314322,166.87,166.83,14.9853]
[1730831497044,11.09314322,166.86,166.83,14.9853]
[1730831497947,11.09314322,166.87,166.83,14.9853]
[1730831500635,11.09314322,166.85,166.83,14.9853]
[1730831500848,11.09314322,166.86,166.83,14.9853]
[1730831501568,11.09314322,166.87,166.83,14.9853]
[1730831503058,5.9923,166.88,166.82,11.09314322]
[1730831503235,11.09314322,166.9,166.85,11.09314322]
[1730831503758,17.39295922,166.91,166.85,11.09314322]
[1730831504139,11.09314322,166.87,166.82,20.0]
[1730831504451,11.09314322,166.88,166.84,20.0]
[1730831504641,11.09314322,166.89,166.84,20.0]
[1730831504846,10.59314322,166.89,166.84,20.0]
[1730831505357,11.09314322,166.9,166.85,11.09314322]
[1730831506157,11.09314322,166.9,166.84,31.09314322]
[1730831506464,11.09314322,166.9,166.85,20.9769]
[1730831506665,11.09314322,166.88,166.85,14.9835]
[1730831506961,11.09314322,166.88,166.85,20.9769]
[1730831507353,11.09314322,166.87,166.83,25.994]
[1730831507856,11.09314322,166.86,166.82,20.9804]
[1730831509661,5.9927,166.87,166.79,20.9841]
[1730831509662,11.09314322,166.83,166.79,20.9841]
[1730831509866,11.09314322,166.81,166.79,20.9841]
[1730831510042,11.09314322,166.8,166.79,14.9886]
[1730831510550,11.09314322,166.8,166.76,20.9882]
[1730831518168,11.09314322,166.8,166.76,14.9916]
[1730831518666,11.09314322,166.81,166.76,14.9916]
[1730831520177,11.09314322,166.81,166.76,20.9882]
[1730831521467,11.09314322,166.8,166.76,20.9882]
[1730831522172,11.09314322,166.81,166.76,20.9882]
[1730831523052,11.09314322,166.8,166.76,14.9916]
[1730831523462,11.09314322,166.81,166.76,14.9916]
[1730831523747,5.9926,166.87,166.79,11.09314322]
[1730831523954,11.09314322,166.84,166.79,11.09314322]
[1730831524151,25.68634513,166.9,166.81,11.09314322]
[1730831524152,5.9916,166.9,166.81,11.09314322]
[1730831524361,11.09314322,166.89,166.84,20.0]
[1730831524667,11.09314322,166.9,166.84,31.09314322]
[1730831524871,11.09314322,166.9,166.85,11.09314322]
[1730831525052,11.40165922,166.91,166.85,11.09314322]
[1730831525250,11.09314322,166.9,166.86,5.993]
[1730831525971,6.299716,166.91,166.85,20.9764]
[1730831525972,11.09314322,166.88,166.85,20.9764]
[1730831527061,11.09314322,166.89,166.85,20.9764]
[1730831530667,11.09314322,166.9,166.85,20.9764]
[1730831532078,0.308516,166.91,166.86,21.5864]
[1730831532275,0.308516,166.91,166.88,11.09314322]
[1730831532476,0.308516,166.91,166.87,20.0]
[1730831532777,11.40165922,166.91,166.87,20.0]
[1730831532974,0.308516,166.91,166.87,20.0]
[1730831533475,0.308516,166.91,166.88,11.09314322]
[1730831534174,0.308516,166.91,166.89,20.9718]
[1730831537069,0.308516,166.91,166.89,14.9799]
[1730831539088,0.308516,166.91,166.89,20.9718]
[1730831541182,0.308516,166.91,166.9,54.87002722]
[1730831541987,0.308516,166.91,166.9,31.09314322]
[1730831543579,0.308516,166.91,166.9,37.08474322]
[1730831547977,0.308516,166.91,166.9,25.9916]
[1730831548176,0.308516,166.91,166.9,37.08474322]
[1730831550794,0.308516,166.91,166.9,60.86162722]
[1730831557195,0.308516,166.91,166.9,37.08474322]
[1730831562987,0.308516,166.91,166.9,25.9916]
[1730831563195,0.308516,166.91,166.89,20.9715]
[1730831563367,0.308516,166.91,166.89,14.9799]
[1730831563793,11.40165922,166.91,166.89,14.9799]
[1730831564006,11.09314322,166.9,166.86,5.9928]
[1730831564210,11.09314322,166.89,166.86,5.9928]